[Event "18th Charleroi Open-A 2019"]
[Site "Charleroi"]
[Date "2019.07.27"]
[Round "1.19"]
[White "Godde, Matthias"]
[Black "Iolis, Oleg"]
[Result "0-1"]
[ECO "B22"]
[WhiteElo "1989"]
[BlackElo "2178"]
[Annotator "NA"]
[PlyCount "132"]
[EventDate "2019.07.22"]
[EventType "swiss"]
[EventCountry "BEL"]
[SourceTitle "playchess.com"]
[Source "ChessBase"]
[SourceQuality "1"]
[TimeControl "40/5400+30:1800+30"]

1. e4 {[%emt 0:00:00]} c5 {[%emt 0:00:00]} 2. c3 {[%emt 0:00:00]} Nf6 {[%emt 0:00:44]} 3. e5 {[%emt 0:00:00]} Nd5 {[%emt 0:00:03]} 4. d4 {[%emt 0:00:00]} cxd4 {[%emt 0:00:07]} 5. cxd4 {[%emt 0:00:00]} d6 {[%emt 0:00:45]} 6. Nf3 {[%emt 0:00:06]} Nc6 {[%emt 0:02:09]} 7. Bc4 {[%emt 0:00:08]} Nb6 {[%emt 0:00:50]} 8. Bb5 {[%emt 0:00:07]} dxe5 {[%emt 0:01:58]} 9. Nxe5 {[%emt 0:00:07]} Bd7 {[%emt 0:00:05]} 10. Nxd7 {[%emt 0:00:25]} Qxd7 {[%emt 0:00:08]} 11. Nc3 {[%emt 0:00:53]} e6 {[%emt 0:02:03]} 12. O-O {[%emt 0:01:19]} Be7 {[%emt 0:00:37]} 13. Qg4 {[%emt 0:00:12]} O-O {[%emt 0:01:14]} 14. Bh6 {[%emt 0:04:06]} Qxd4 {[%emt 0:06:48]} 15. Qg3 {[%emt 0:03:53]} Bh4 {[%emt 0:03:03]} 16. Be3 {[%emt 0:06:44]} Bxg3 {[%emt 0:00:08]} 17. Bxd4 {[%emt 0:00:03]} Bxh2+ {[%emt 0:00:22]} 18. Kxh2 {[%emt 0:00:04]} Nxd4 {[%emt 0:00:05]} 19. Bd3 {[%emt 0:00:55]} Rfd8 {[%emt 0:09:03]} 20. Be4 {[%emt 0:10:48]} Rd7 {[%emt 0:00:07]} 21. g3 {[%emt 0:00:05]} Nc4 {[%emt 0:04:51]} 22. Bg2 {[%emt 0:00:47]} Rc8 {[%emt 0:02:49]} 23. Nd1 {[%emt 0:08:01]} Nd2 {[%emt 0:05:24]} 24. Rh1 {[%emt 0:00:06]} Rc5 {[%emt 0:02:54]} 25. Ne3 {[%emt 0:08:00]} N2f3+ {[%emt 0:10:44]} 26. Bxf3 {[%emt 0:08:59]} Nxf3+ {[%emt 0:00:24]} 27. Kg2 {[%emt 0:00:41]} Ne5 {[%emt 0:02:25]} 28. Rhd1 {[%emt 0:03:33]} Rxd1 {[%emt 0:01:55]} 29. Rxd1 {[%emt 0:00:04]} Kf8 {[%emt 0:00:06]} 30. b4 {[%emt 0:00:11]} Rc7 {[%emt 0:01:24]} 31. Rd8+ {[%emt 0:05:59]} Ke7 {[%emt 0:00:28]} 32. Rh8 {[%emt 0:00:05]} h6 {[%emt 0:03:38]} 33. b5 {[%emt 0:00:24]} Nc4 {[%emt 0:00:48]} 34. Nxc4 {[%emt 0:00:46]} Rxc4 {[%emt 0:00:08]} 35. Ra8 {[%emt 0:00:03]} Rb4 {[%emt 0:02:12]} 36. Rxa7 {[%emt 0:00:09]} Rxb5 {[%emt 0:00:05]} 37. a4 {[%emt 0:00:14]} Rb3 {[%emt 0:00:48]} 38. a5 {[%emt 0:00:05]} Kf6 {[%emt 0:00:17]} 39. a6 {[%emt 0:00:36]} bxa6 {[%emt 0:00:05]} 40. Rxa6 {[%emt 0:00:02]} h5 {[%emt 0:01:05]} 41. Ra5 {[%emt 0:32:20]} g6 {[%emt 0:30:28]} 42. Rc5 {[%emt 0:00:13]} Rd3 {[%emt 0:00:05]} 43. Ra5 {[%emt 0:00:10]} Rd4 {[%emt 0:00:31]} 44. Rb5 {[%emt 0:00:11]} h4 {[%emt 0:00:34]} 45. gxh4 {[%emt 0:00:11]} Rxh4 {[%emt 0:00:05]} 46. Ra5 {[%emt 0:00:10]} g5 {[%emt 0:00:41]} 47. Rb5 {[%emt 0:00:33]} Rd4 {[%emt 0:00:27]} 48. Ra5 {[%emt 0:00:11]} Kg6 {[%emt 0:00:46]} 49. Re5 {[%emt 0:01:35]} Rd6 {[%emt 0:00:27]} 50. Kg3 {[%emt 0:00:23]} f5 {[%emt 0:00:54]} 51. Ra5 {[%emt 0:00:04]} Rd3+ {[%emt 0:00:11]} 52. Kg2 {[%emt 0:00:06]} g4 {[%emt 0:03:01]} 53. Re5 {[%emt 0:01:01]} Kf6 {[%emt 0:00:09]} 54. Ra5 {[%emt 0:00:04]} e5 {[%emt 0:01:38]} 55. Rb5 {[%emt 0:00:07]} e4 {[%emt 0:00:11]} 56. Ra5 {[%emt 0:00:46]} Kg5 {[%emt 0:00:26]} 57. Rb5 {[%emt 0:00:22]} Kf4 {[%emt 0:00:09]} 58. Rb4 {[%emt 0:00:28]} g3 {[%emt 0:00:12]} 59. fxg3+ {[%emt 0:00:09]} Rxg3+ {[%emt 0:00:06]} 60. Kf2 {[%emt 0:01:03]} Rd3 {[%emt 0:00:09]} 61. Ke2 {[%emt 0:00:46]} Rh3 {[%emt 0:00:14]} 62. Kf2 {[%emt 0:00:44]} Rh2+ {[%emt 0:00:06]} 63. Kg1 {[%emt 0:00:17]} Rd2 {[%emt 0:00:24]} 64. Rb3 {[%emt 0:00:34]} e3 {[%emt 0:00:23]} 65. Ra3 {[%emt 0:00:08]} Rd1+ {[%emt 0:00:15]} 66. Kg2 {[%emt 0:00:05]} e2 {[%emt 0:00:25]} 0-1

[Event "18th Charleroi Open-A 2019"]
[Site "Charleroi"]
[Date "2019.07.27"]
[Round "1.20"]
[White "Manafov, Vugar"]
[Black "Callier, Christophe"]
[Result "1/2-1/2"]
[ECO "B74"]
[WhiteElo "2175"]
[BlackElo "1986"]
[Annotator "NA"]
[PlyCount "82"]
[EventDate "2019.07.22"]
[EventType "swiss"]
[EventCountry "BEL"]
[SourceTitle "playchess.com"]
[Source "ChessBase"]
[SourceQuality "1"]
[TimeControl "40/5400+30:1800+30"]

1. e4 {[%emt 0:00:00]} c5 {[%emt 0:00:00]} 2. Nf3 {[%emt 0:00:00]} g6 {[%emt 0:00:00]} 3. d4 {[%emt 0:00:00]} cxd4 {[%emt 0:00:00]} 4. Nxd4 {[%emt 0:00:05]} Nc6 {[%emt 0:00:00]} 5. Nc3 {[%emt 0:00:15]} Bg7 {[%emt 0:00:00]} 6. Nb3 {[%emt 0:00:27]} Nf6 {[%emt 0:01:40]} 7. Be2 {[%emt 0:00:13]} O-O {[%emt 0:02:13]} 8. O-O {[%emt 0:01:00]} b6 {[%emt 0:02:50]} 9. f4 {[%emt 0:00:36]} d6 {[%emt 0:01:13]} 10. Bf3 {[%emt 0:01:38]} Bb7 {[%emt 0:00:57]} 11. Be3 {[%emt 0:02:51]} Nd7 {[%emt 0:05:12]} 12. Qd2 {[%emt 0:03:04]} a5 {[%emt 0:09:33]} 13. a4 {[%emt 0:01:43]} Nb4 {[%emt 0:03:50]} 14. Rad1 {[%emt 0:08:28]} Nc5 {[%emt 0:11:52]} 15. Nxc5 {[%emt 0:14:56]} dxc5 {[%emt 0:02:12]} 16. e5 {[%emt 0:01:09]} Bxf3 {[%emt 0:05:11]} 17. Rxf3 {[%emt 0:00:46]} Qxd2 {[%emt 0:01:11]} 18. Rxd2 {[%emt 0:00:10]} Rfd8 {[%emt 0:00:40]} 19. Rff2 {[%emt 0:01:57]} Kf8 {[%emt 0:06:18]} 20. g4 {[%emt 0:06:08]} e6 {[%emt 0:05:34]} 21. Kg2 {[%emt 0:05:05]} Nd5 {[%emt 0:05:00]} 22. Nd1 {[%emt 0:01:47]} Ke7 {[%emt 0:04:09]} 23. c3 {[%emt 0:13:16]} Rac8 {[%emt 0:07:59]} 24. h4 {[%emt 0:03:56]} Rc7 {[%emt 0:08:19]} 25. Kf3 {[%emt 0:09:44]} Rcd7 {[%emt 0:01:51]} 26. Rd3 {[%emt 0:04:15]} f6 {[%emt 0:03:54]} 27. exf6+ {[%emt 0:02:05]} Nxf6 {[%emt 0:00:29]} 28. Rxd7+ {[%emt 0:00:22]} Rxd7 {[%emt 0:00:08]} 29. Rd2 {[%emt 0:00:57]} Nd5 {[%emt 0:01:17]} 30. Nf2 {[%emt 0:01:12]} Rd8 {[%emt 0:03:12]} 31. Ne4 {[%emt 0:01:51]} Rc8 {[%emt 0:02:44]} 32. Ng5 {[%emt 0:06:22]} h6 {[%emt 0:00:31]} 33. Ne4 {[%emt 0:00:01]} Nf6 {[%emt 0:01:29]} 34. Nxf6 {[%emt 0:02:37]} Bxf6 {[%emt 0:00:10]} 35. Ke4 {[%emt 0:00:53]} Bxh4 {[%emt 0:02:52]} 36. Rh2 {[%emt 0:00:44]} g5 {[%emt 0:00:18]} 37. fxg5 {[%emt 0:02:52]} hxg5 {[%emt 0:00:31]} 38. Rh1 {[%emt 0:00:33]} Rf8 {[%emt 0:01:34]} 39. c4 {[%emt 0:01:34]} Rf7 {[%emt 0:01:50]} 40. Rd1 {[%emt 0:00:29]} Rf8 {[%emt 0:00:27]} 41. Rh1 {[%emt 0:32:45]} Rf7 {[%emt 0:11:34]} 1/2-1/2

[Event "18th Charleroi Open-A 2019"]
[Site "Charleroi"]
[Date "2019.07.27"]
[Round "1.21"]
[White "Verhalle, Elias"]
[Black "Goormachtigh, Johan"]
[Result "1-0"]
[ECO "A11"]
[WhiteElo "1983"]
[BlackElo "2164"]
[Annotator "NA"]
[PlyCount "51"]
[EventDate "2019.07.22"]
[EventType "swiss"]
[EventCountry "BEL"]
[SourceTitle "playchess.com"]
[Source "ChessBase"]
[SourceQuality "1"]
[TimeControl "40/5400+30:1800+30"]

1. c4 {[%emt 0:00:00]} c6 {[%emt 0:00:00]} 2. Nf3 {[%emt 0:00:29]} d5 {[%emt 0:00:00]} 3. g3 {[%emt 0:01:15]} Nf6 {[%emt 0:00:34]} 4. Bg2 {[%emt 0:00:44]} Bf5 {[%emt 0:00:04]} 5. cxd5 {[%emt 0:01:51]} cxd5 {[%emt 0:04:38]} 6. Qb3 {[%emt 0:03:17]} Qb6 {[%emt 0:00:37]} 7. Qxb6 {[%emt 0:00:53]} axb6 {[%emt 0:00:04]} 8. d3 {[%emt 0:00:25]} Nc6 {[%emt 0:01:53]} 9. O-O {[%emt 0:06:33]} h6 {[%emt 0:08:15]} 10. Nc3 {[%emt 0:05:37]} e6 {[%emt 0:00:07]} 11. Nb5 {[%emt 0:04:33]} Kd7 {[%emt 0:01:13]} 12. Bf4 {[%emt 0:09:17]} Be7 {[%emt 0:10:10]} 13. Ne5+ {[%emt 0:11:51]} Nxe5 {[%emt 0:14:11]} 14. Bxe5 {[%emt 0:00:20]} Rhc8 {[%emt 0:01:09]} 15. e4 {[%emt 0:06:46]} Bg6 {[%emt 0:07:57]} 16. Nc3 {[%emt 0:15:55]} dxe4 {[%emt 0:26:46]} 17. dxe4 {[%emt 0:01:44]} Ke8 {[%emt 0:00:04]} 18. Rfd1 {[%emt 0:01:07]} Bh5 {[%emt 0:06:14]} 19. Rd2 {[%emt 0:07:05]} Rd8 {[%emt 0:05:17]} 20. Rc2 {[%emt 0:04:35]} Rac8 {[%emt 0:06:00]} 21. h3 {[%emt 0:01:17]} Bd1 {[%emt 0:00:46]} 22. Rcc1 {[%emt 0:01:13]} Bh5 {[%emt 0:00:31]} 23. Nb5 {[%emt 0:06:31]} Rc5 {[%emt 0:03:03]} 24. Rxc5 {[%emt 0:02:33]} bxc5 {[%emt 0:01:04]} 25. g4 {[%emt 0:02:00]} Bg6 {[%emt 0:00:04]} 26. Re1 {[%emt 0:05:09]} 1-0

[Event "18th Charleroi Open-A 2019"]
[Site "Charleroi"]
[Date "2019.07.28"]
[Round "2.1"]
[White "Gurevich, Mikhail"]
[Black "Manafov, Vugar"]
[Result "1-0"]
[ECO "A14"]
[WhiteElo "2587"]
[BlackElo "2175"]
[Annotator "ChessBase"]
[PlyCount "71"]
[EventDate "2019.07.22"]
[EventType "swiss"]
[EventCountry "BEL"]
[SourceTitle "playchess.com"]
[Source "ChessBase"]
[SourceQuality "1"]
[TimeControl "40/5400+30:1800+30"]

1. c4 {[%emt 0:00:00]} Nf6 {[%emt 0:02:00]} 2. Nf3 {[%emt 0:00:41]} e6 {[%emt 0:00:06]} 3. g3 {[%emt 0:00:07]} d5 {[%emt 0:00:11]} 4. Bg2 {[%emt 0:00:05]} Nbd7 {[%emt 0:00:15]} 5. b3 {[%emt 0:01:08]} Be7 {[%emt 0:00:25]} 6. O-O {[%emt 0:00:35]} O-O {[%emt 0:00:31]} 7. Bb2 {[%emt 0:00:24]} a5 {[%emt 0:01:34]} 8. d4 {[%emt 0:05:32]} a4 {[%emt 0:03:26]} 9. c5 {[%emt 0:00:05]} Ne4 {[%emt 0:02:40]} 10. b4 {[%emt 0:01:13]} c6 {[%emt 0:00:54]} 11. a3 {[%emt 0:01:43]} b6 {[%emt 0:03:09]} 12. Nc3 {[%emt 0:08:09]} bxc5 {[%emt 0:04:33]} 13. dxc5 {[%emt 0:02:43]} Nxc3 {[%emt 0:01:31]} 14. Bxc3 {[%emt 0:00:05]} Bf6 {[%emt 0:00:32]} 15. Nd4 {[%emt 0:06:01]} Bxd4 {[%emt 0:01:32]} 16. Qxd4 {[%emt 0:03:53]} e5 {[%emt 0:00:48]} 17. Qd2 {[%emt 0:00:10]} Ba6 {[%emt 0:01:33]} 18. f4 {[%emt 0:13:46]} Qe7 {[%emt 0:02:38]} 19. fxe5 {[%emt 0:10:59]} Nxe5 {[%emt 0:00:53]} 20. Qd4 {[%emt 0:00:07]} Rae8 {[%emt 0:02:53]} 21. Rf5 {[%emt 0:08:02]} f6 {[%emt 0:00:15]} 22. e4 {[%emt 0:00:04]} dxe4 {[%emt 0:03:55]} 23. Bxe4 {[%emt 0:00:06]} Kh8 {[%emt 0:05:44]} 24. Re1 {[%emt 0:05:12]} Qf7 {[%emt 0:02:18]} 25. Qd2 {[%emt 0:10:05]} Nd3 {[%emt 0:07:21]} 26. Re3 {[%emt 0:02:02]} Rxe4 {[%emt 0:00:25]} 27. Rxe4 {[%emt 0:00:12]} Qg6 {[%emt 0:00:04]} 28. g4 {[%emt 0:00:06]} Bc8 {[%emt 0:00:05]} 29. Kh1 {[%emt 0:03:03]} Rd8 {[%emt 0:02:36]} 30. Rff4 {[%emt 0:01:47]} Rd5 {[%emt 0:01:20]} 31. Qe2 {[%emt 0:07:47]} h6 {[%emt 0:01:03]} 32. Rf1 {[%emt 0:04:14]} Ba6 {[%emt 0:01:01]} 33. Re8+ {[%emt 0:00:30]} Kh7 {[%emt 0:00:02]} 34. Qe6 {[%emt 0:00:19]} h5 {[%emt 0:02:54]} 35. Qg8+ {[%emt 0:00:47]} Kh6 {[%emt 0:00:01]} 36. Bd2+ {[%emt 0:06:18] Rd7} 1-0

[Event "18th Charleroi Open-A 2019"]
[Site "Charleroi"]
[Date "2019.07.28"]
[Round "2.2"]
[White "Verheyen, Olivier"]
[Black "Miezis, Normunds"]
[Result "1/2-1/2"]
[ECO "B41"]
[WhiteElo "2200"]
[BlackElo "2495"]
[Annotator "ChessBase"]
[PlyCount "91"]
[EventDate "2019.07.22"]
[EventType "swiss"]
[EventCountry "BEL"]
[SourceTitle "playchess.com"]
[Source "ChessBase"]
[SourceQuality "1"]
[TimeControl "40/5400+30:1800+30"]

1. e4 {[%emt 0:00:00]} c5 {[%emt 0:00:06]} 2. Nf3 {[%emt 0:00:00]} e6 {[%emt 0:00:12]} 3. d4 {[%emt 0:00:00]} cxd4 {[%emt 0:00:10]} 4. Nxd4 {[%emt 0:00:00]} a6 {[%emt 0:00:12]} 5. c4 {[%emt 0:00:41]} Nf6 {[%emt 0:01:17]} 6. Nc3 {[%emt 0:00:31]} Bb4 {[%emt 0:00:19]} 7. Qd3 {[%emt 0:01:00]} O-O {[%emt 0:00:34]} 8. e5 {[%emt 0:01:18]} Ne8 {[%emt 0:00:18]} 9. Bf4 {[%emt 0:01:08]} d6 {[%emt 0:01:19]} 10. Nc2 {[%emt 0:00:50]} Bxc3+ {[%emt 0:01:00]} 11. Qxc3 {[%emt 0:00:09]} dxe5 {[%emt 0:00:39]} 12. Bxe5 {[%emt 0:00:31]} Nc6 {[%emt 0:01:16]} 13. Rd1 {[%emt 0:00:17]} Qe7 {[%emt 0:00:55]} 14. Be2 {[%emt 0:00:44]} f6 {[%emt 0:01:58]} 15. Bg3 {[%emt 0:04:52]} f5 {[%emt 0:01:20]} 16. Be5 {[%emt 0:03:23]} f4 {[%emt 0:01:07]} 17. Bf3 {[%emt 0:08:16]} Qg5 {[%emt 0:02:17]} 18. Bxc6 {[%emt 0:03:43]} bxc6 {[%emt 0:00:18]} 19. g3 {[%emt 0:03:01]} fxg3 {[%emt 0:10:38]} 20. hxg3 {[%emt 0:03:17]} c5 {[%emt 0:01:18]} 21. f4 {[%emt 0:07:28]} Qf5 {[%emt 0:07:39]} 22. Qd3 {[%emt 0:06:21]} Bb7 {[%emt 0:00:45]} 23. Qxf5 {[%emt 0:00:17]} exf5 {[%emt 0:01:14]} 24. O-O {[%emt 0:02:39]} Be4 {[%emt 0:01:23]} 25. Ne3 {[%emt 0:01:50]} a5 {[%emt 0:02:19]} 26. Nd5 {[%emt 0:06:16]} Ra6 {[%emt 0:01:26]} 27. Nc3 {[%emt 0:02:09]} Bc6 {[%emt 0:07:58]} 28. Rd8 {[%emt 0:02:39]} Nf6 {[%emt 0:02:13]} 29. Bxf6 {[%emt 0:13:53]} gxf6 {[%emt 0:00:35]} 30. Rfd1 {[%emt 0:00:28]} Rxd8 {[%emt 0:02:18]} 31. Rxd8+ {[%emt 0:00:03]} Kf7 {[%emt 0:00:12]} 32. Nd5 {[%emt 0:04:42]} Bxd5 {[%emt 0:00:23]} 33. Rxd5 {[%emt 0:00:26]} Rb6 {[%emt 0:00:16]} 34. Rxc5 {[%emt 0:01:30]} Rxb2 {[%emt 0:00:16]} 35. Rxa5 {[%emt 0:00:12]} Kg6 {[%emt 0:00:13]} 36. a4 {[%emt 0:07:29]} Rc2 {[%emt 0:06:13]} 37. Rc5 {[%emt 0:02:13]} Kh5 {[%emt 0:01:22]} 38. Rxf5+ {[%emt 0:07:01]} Kg4 {[%emt 0:00:21]} 39. Rxf6 {[%emt 0:00:30]} Kxg3 {[%emt 0:03:19]} 40. Kf1 {[%emt 0:00:06]} Rxc4 {[%emt 0:03:00]} 41. Rh6 {[%emt 0:32:10]} Rxf4+ {[%emt 0:33:46]} 42. Ke2 {[%emt 0:00:11]} Re4+ {[%emt 0:02:59]} 43. Kd3 {[%emt 0:00:20]} Rxa4 {[%emt 0:01:38]} 44. Rxh7 {[%emt 0:00:07]} Rh4 {[%emt 0:00:08]} 45. Rxh4 {[%emt 0:00:07]} Kxh4 {[%emt 0:00:22]} 46. Ke4 1/2-1/2

[Event "18th Charleroi Open-A 2019"]
[Site "Charleroi"]
[Date "2019.07.28"]
[Round "2.3"]
[White "Mirzoev, Azer"]
[Black "Lacroix, Bruno"]
[Result "1-0"]
[ECO "E83"]
[WhiteElo "2474"]
[BlackElo "2152"]
[Annotator "ChessBase"]
[PlyCount "81"]
[EventDate "2019.07.22"]
[EventType "swiss"]
[EventCountry "BEL"]
[SourceTitle "playchess.com"]
[Source "ChessBase"]
[SourceQuality "1"]
[TimeControl "40/5400+30:1800+30"]

1. d4 {[%emt 0:00:09]} Nf6 {[%emt 0:00:00]} 2. c4 {[%emt 0:00:05]} g6 {[%emt 0:00:00]} 3. Nc3 {[%emt 0:00:05]} Bg7 {[%emt 0:00:00]} 4. e4 {[%emt 0:00:04]} d6 {[%emt 0:00:00]} 5. f3 {[%emt 0:00:04]} O-O {[%emt 0:00:00]} 6. Be3 {[%emt 0:00:12]} Nc6 {[%emt 0:00:23]} 7. Nge2 {[%emt 0:00:16]} a6 {[%emt 0:00:48]} 8. Qd2 {[%emt 0:00:10]} Re8 {[%emt 0:00:53]} 9. Rd1 {[%emt 0:03:43]} Bd7 {[%emt 0:16:29]} 10. Nc1 {[%emt 0:04:11]} e5 {[%emt 0:14:06]} 11. d5 {[%emt 0:00:05]} Nd4 {[%emt 0:00:51]} 12. Nb3 {[%emt 0:00:06]} Nxb3 {[%emt 0:00:16]} 13. axb3 {[%emt 0:00:07]} Nh5 {[%emt 0:00:57]} 14. c5 {[%emt 0:01:43]} f5 {[%emt 0:06:28]} 15. Bc4 {[%emt 0:03:07]} Kh8 {[%emt 0:05:33]} 16. b4 {[%emt 0:01:56]} Rf8 {[%emt 0:08:51]} 17. O-O {[%emt 0:17:26]} f4 {[%emt 0:00:32]} 18. Bf2 {[%emt 0:00:04]} Bf6 {[%emt 0:01:12]} 19. Ra1 {[%emt 0:01:47]} Bh4 {[%emt 0:01:26]} 20. b5 {[%emt 0:02:50]} axb5 {[%emt 0:12:03]} 21. Nxb5 {[%emt 0:03:41]} Bxf2+ {[%emt 0:02:12]} 22. Qxf2 {[%emt 0:00:05]} Bxb5 {[%emt 0:01:15]} 23. Bxb5 {[%emt 0:00:06]} Qe7 {[%emt 0:05:12]} 24. b4 {[%emt 0:00:07]} Nf6 {[%emt 0:01:26]} 25. Rfc1 {[%emt 0:01:44]} Rfc8 {[%emt 0:01:17]} 26. Be2 {[%emt 0:03:47]} Nd7 {[%emt 0:01:31]} 27. Bb5 {[%emt 0:01:00]} Nf6 {[%emt 0:01:30]} 28. Ra5 {[%emt 0:00:53]} Rxa5 {[%emt 0:02:23]} 29. bxa5 {[%emt 0:01:09]} Ra8 {[%emt 0:06:25]} 30. cxd6 {[%emt 0:01:24]} Qxd6 {[%emt 0:00:30]} 31. Qe1 {[%emt 0:04:02]} Kg7 {[%emt 0:02:12]} 32. Qc3 {[%emt 0:02:19]} Rc8 {[%emt 0:00:25]} 33. h3 {[%emt 0:07:12]} Kf8 {[%emt 0:00:25]} 34. Kh2 {[%emt 0:00:21]} Ke7 {[%emt 0:00:59]} 35. Qb3 {[%emt 0:01:48]} Ra8 {[%emt 0:03:04]} 36. Qa4 {[%emt 0:03:05]} Kd8 {[%emt 0:01:17]} 37. a6 {[%emt 0:01:32]} bxa6 {[%emt 0:00:19]} 38. Rc6 {[%emt 0:00:36]} Qe7 {[%emt 0:00:04]} 39. Re6 {[%emt 0:01:11]} Qc5 {[%emt 0:00:31]} 40. Rxf6 {[%emt 0:02:16]} Qe7 {[%emt 0:06:15]} 41. Rc6 {[%emt 1:04:02]} 1-0

[Event "18th Charleroi Open-A 2019"]
[Site "Charleroi"]
[Date "2019.07.28"]
[Round "2.4"]
[White "Goormachtigh, Johan"]
[Black "Gutenev, Alexander"]
[Result "0-1"]
[ECO "D85"]
[WhiteElo "2164"]
[BlackElo "2470"]
[Annotator "ChessBase"]
[PlyCount "54"]
[EventDate "2019.07.22"]
[EventType "swiss"]
[EventCountry "BEL"]
[SourceTitle "playchess.com"]
[Source "ChessBase"]
[SourceQuality "1"]
[TimeControl "40/5400+30:1800+30"]

1. d4 {[%emt 0:00:00]} Nf6 {[%emt 0:12:55]} 2. Nf3 {[%emt 0:00:47]} g6 {[%emt 0:00:06]} 3. c4 {[%emt 0:00:40]} Bg7 {[%emt 0:00:06]} 4. Nc3 {[%emt 0:00:07]} d5 {[%emt 0:00:08]} 5. cxd5 {[%emt 0:02:08]} Nxd5 {[%emt 0:00:41]} 6. e4 {[%emt 0:00:08]} Nxc3 {[%emt 0:00:05]} 7. bxc3 {[%emt 0:00:03]} c5 {[%emt 0:00:08]} 8. Be3 {[%emt 0:01:35]} Qa5 {[%emt 0:01:28]} 9. Qd2 {[%emt 0:00:44]} O-O {[%emt 0:01:15]} 10. Rb1 {[%emt 0:01:46]} a6 {[%emt 0:04:29]} 11. Rc1 {[%emt 0:02:00]} Bg4 {[%emt 0:04:45]} 12. Be2 {[%emt 0:09:39]} Nd7 {[%emt 0:00:42]} 13. h3 {[%emt 0:14:46]} Bxf3 {[%emt 0:01:32]} 14. Bxf3 {[%emt 0:00:06]} Rfd8 {[%emt 0:11:39]} 15. d5 {[%emt 0:07:34]} c4 {[%emt 0:00:18]} 16. O-O {[%emt 0:10:05]} Ne5 {[%emt 0:02:42]} 17. Be2 {[%emt 0:02:21]} e6 {[%emt 0:00:09]} 18. Qb2 {[%emt 0:01:26]} Qb5 {[%emt 0:02:47]} 19. Qxb5 {[%emt 0:13:58]} axb5 {[%emt 0:00:05]} 20. dxe6 {[%emt 0:01:07]} Rxa2 {[%emt 0:02:02]} 21. exf7+ {[%emt 0:01:11]} Kxf7 {[%emt 0:00:15]} 22. Rfe1 {[%emt 0:05:20]} Nd3 {[%emt 0:01:06]} 23. Bxd3 {[%emt 0:00:05]} Rxd3 {[%emt 0:00:14]} 24. Red1 {[%emt 0:02:34]} Rxd1+ {[%emt 0:02:36]} 25. Rxd1 {[%emt 0:00:25]} Bxc3 {[%emt 0:00:10]} 26. Rd7+ {[%emt 0:01:30]} Ke8 {[%emt 0:02:32]} 27. Rxb7 {[%emt 0:00:36]} b4 {[%emt 0:00:05]} 0-1

[Event "18th Charleroi Open-A 2019"]
[Site "Charleroi"]
[Date "2019.07.28"]
[Round "2.5"]
[White "Lugovskoy, Maxim"]
[Black "De Villers, Mourad"]
[Result "1-0"]
[ECO "B06"]
[WhiteElo "2425"]
[BlackElo "2140"]
[Annotator "NA"]
[PlyCount "101"]
[EventDate "2019.07.22"]
[EventType "swiss"]
[EventCountry "BEL"]
[SourceTitle "playchess.com"]
[Source "ChessBase"]
[SourceQuality "1"]
[TimeControl "40/5400+30:1800+30"]

1. e4 {[%emt 0:15:45]} c5 {[%emt 0:00:00]} 2. Nf3 {[%emt 0:00:14]} g6 {[%emt 0:00:56]} 3. c3 {[%emt 0:02:11]} d5 {[%emt 0:03:36]} 4. exd5 {[%emt 0:00:36]} Qxd5 {[%emt 0:00:58]} 5. d4 {[%emt 0:00:04]} Bg7 {[%emt 0:01:06]} 6. Be2 {[%emt 0:00:08]} cxd4 {[%emt 0:01:03]} 7. cxd4 {[%emt 0:00:03]} Nf6 {[%emt 0:02:52]} 8. Nc3 {[%emt 0:00:05]} Qa5 {[%emt 0:01:02]} 9. Ne5 {[%emt 0:07:08]} O-O {[%emt 0:01:23]} 10. O-O {[%emt 0:01:02]} Nc6 {[%emt 0:13:03]} 11. Nc4 {[%emt 0:03:22]} Qc7 {[%emt 0:07:06]} 12. Be3 {[%emt 0:06:00]} Rd8 {[%emt 0:02:29]} 13. Nb5 {[%emt 0:05:19]} Qb8 {[%emt 0:03:10]} 14. Qc1 {[%emt 0:03:31]} Nd5 {[%emt 0:01:22]} 15. Bf3 {[%emt 0:00:26]} Be6 {[%emt 0:57:24]} 16. Rd1 {[%emt 0:06:24]} Nxe3 {[%emt 0:00:00]} 17. fxe3 {[%emt 0:01:24]} Bd5 {[%emt 0:00:00]} 18. Bxd5 {[%emt 0:01:19]} Rxd5 {[%emt 0:00:00]} 19. Nc3 {[%emt 0:00:02]} Rd7 {[%emt 0:00:00]} 20. Qc2 {[%emt 0:00:59]} Qd8 {[%emt 0:00:00]} 21. Qb3 {[%emt 0:02:03]} Na5 {[%emt 0:00:00]} 22. Nxa5 {[%emt 0:00:04]} Qxa5 {[%emt 0:00:00]} 23. Rac1 {[%emt 0:06:55]} Rad8 {[%emt 0:00:00]} 24. Ne4 {[%emt 0:01:32]} b6 {[%emt 0:00:00]} 25. Rf1 {[%emt 0:01:32]} Qd5 {[%emt 0:00:00]} 26. Qxd5 {[%emt 0:00:09]} Rxd5 {[%emt 0:00:00]} 27. Rc7 {[%emt 0:00:01]} R5d7 {[%emt 0:00:00]} 28. Rfc1 {[%emt 0:00:03]} h6 {[%emt 0:00:00]} 29. b4 {[%emt 0:08:38]} e5 {[%emt 0:00:00]} 30. Rxd7 {[%emt 0:05:29]} Rxd7 {[%emt 0:00:00]} 31. Rc8+ {[%emt 0:00:17]} Kh7 {[%emt 0:00:00]} 32. dxe5 {[%emt 0:01:55]} Bxe5 {[%emt 0:00:00]} 33. g3 {[%emt 0:02:25]} f5 {[%emt 0:00:32]} 34. Nf2 {[%emt 0:00:02]} Kg7 {[%emt 0:02:35]} 35. Kf1 {[%emt 0:00:05]} Rd2 {[%emt 0:01:48]} 36. a4 {[%emt 0:00:02]} Bd6 {[%emt 0:01:01]} 37. Rc4 {[%emt 0:04:17]} Rb2 {[%emt 0:01:08]} 38. b5 {[%emt 0:04:29]} Ra2 {[%emt 0:02:13]} 39. e4 {[%emt 0:04:27]} Bc5 {[%emt 0:01:49]} 40. Nd3 {[%emt 0:00:04]} Be3 {[%emt 0:00:22]} 41. Rc7+ {[%emt 0:35:21]} Kf6 {[%emt 0:01:21]} 42. e5+ {[%emt 0:00:00]} Ke6 {[%emt 0:03:43]} 43. Rc6+ {[%emt 0:00:00]} Kf7 {[%emt 0:00:39]} 44. Nb4 {[%emt 0:00:00]} Rf2+ {[%emt 0:01:15]} 45. Ke1 {[%emt 0:00:00]} Rxh2 {[%emt 0:00:28]} 46. e6+ {[%emt 0:00:00]} Kf8 {[%emt 0:03:20]} 47. Nd5 {[%emt 0:00:00]} Bg5 {[%emt 0:01:37]} 48. Rc8+ {[%emt 0:00:00]} Kg7 {[%emt 0:00:52]} 49. Rc7+ {[%emt 0:00:00]} Kf8 {[%emt 0:00:42]} 50. Rf7+ {[%emt 0:00:00]} Ke8 {[%emt 0:00:59]} 51. Rxa7 {[%emt 0:00:00]} 1-0

[Event "18th Charleroi Open-A 2019"]
[Site "Charleroi"]
[Date "2019.07.28"]
[Round "2.7"]
[White "Capone, Nicola"]
[Black "Roos, David"]
[Result "1-0"]
[ECO "B57"]
[WhiteElo "2297"]
[BlackElo "2114"]
[Annotator "NA"]
[PlyCount "35"]
[EventDate "2019.07.22"]
[EventType "swiss"]
[EventCountry "BEL"]
[SourceTitle "playchess.com"]
[Source "ChessBase"]
[SourceQuality "1"]
[TimeControl "40/5400+30:1800+30"]

1. e4 {[%emt 0:00:00]} c5 {[%emt 0:00:00]} 2. Nc3 {[%emt 0:00:00]} Nc6 {[%emt 0:00:00]} 3. Nf3 {[%emt 0:00:00]} d6 {[%emt 0:00:41]} 4. d4 {[%emt 0:00:00]} cxd4 {[%emt 0:00:04]} 5. Nxd4 {[%emt 0:00:00]} Nf6 {[%emt 0:00:20]} 6. Bc4 {[%emt 0:01:24]} Qb6 {[%emt 0:01:14]} 7. Nxc6 {[%emt 0:01:01]} bxc6 {[%emt 0:00:33]} 8. O-O {[%emt 0:00:06]} e5 {[%emt 0:03:58]} 9. Bb3 {[%emt 0:08:31]} Be6 {[%emt 0:01:57]} 10. Kh1 {[%emt 0:02:21]} Be7 {[%emt 0:05:24]} 11. Qd3 {[%emt 0:11:08]} Qb7 {[%emt 0:14:42]} 12. f4 {[%emt 0:09:53]} exf4 {[%emt 0:17:40]} 13. Bxf4 {[%emt 0:00:18]} d5 {[%emt 0:00:18]} 14. exd5 {[%emt 0:00:46]} Nxd5 {[%emt 0:00:38]} 15. Nxd5 {[%emt 0:00:56]} Bxd5 {[%emt 0:00:44]} 16. Qg3 {[%emt 0:05:46]} g6 {[%emt 0:13:04]} 17. Qc3 {[%emt 0:02:49]} O-O-O {[%emt 0:02:02]} 18. Bxd5 {[%emt 0:00:14]} 1-0